[Event "Vienna Championship-C 2022"]
[Site "Vienna"]
[Date "2022.09.23"]
[Round "7.10"]
[White "Johnson, Roland E S"]
[Black "Roehrbacher, Franz"]
[Result "1/2-1/2"]
[ECO "C50"]
[WhiteElo "1691"]
[BlackElo "1673"]
[Annotator "NA RC COMBH"]
[PlyCount "67"]
[EventDate "2022.09.17"]
[EventType "swiss"]
[EventCountry "AUT"]
[SourceTitle "playchess.com"]
[Source "ChessBase"]
[SourceQuality "1"]
[TimeControl "5400+30"]

1. e4 {[%emt 0:00:04]} e5 {[%emt 0:00:03]} 2. Nf3 {[%emt 0:00:09]} Nc6 {[%emt 0:00:06]} 3. Bc4 {[%emt 0:00:06]} Bc5 {[%emt 0:00:12]} 4. O-O {[%emt 0:00:08]} Nf6 {[%emt 0:00:05]} 5. Nc3 {[%emt 0:00:12]} d6 {[%emt 0:00:38]} 6. h3 {[%emt 0:00:08]} a6 {[%emt 0:01:25]} 7. d3 {[%emt 0:00:38]} h6 {[%emt 0:00:30]} 8. Be3 {[%emt 0:01:40]} Ba7 {[%emt 0:01:28]} 9. Bxa7 {[%emt 0:00:53]} Rxa7 {[%emt 0:00:27]} 10. d4 {[%emt 0:02:21]} exd4 {[%emt 0:01:06]} 11. Nxd4 {[%emt 0:00:08]} Nxd4 {[%emt 0:01:14]} 12. Qxd4 {[%emt 0:00:07]} c5 {[%emt 0:00:22]} 13. Qe3 {[%emt 0:00:19]} b5 {[%emt 0:03:05]} 14. Be2 {[%emt 0:01:06]} Re7 {[%emt 0:02:10]} 15. f3 {[%emt 0:00:21]} Bb7 {[%emt 0:00:44]} 16. Qd2 {[%emt 0:06:13]} O-O {[%emt 0:00:52]} 17. Rfd1 {[%emt 0:00:18]} Rd7 {[%emt 0:03:08]} 18. Qf4 {[%emt 0:05:19]} d5 {[%emt 0:03:00]} 19. exd5 {[%emt 0:00:23]} Nxd5 {[%emt 0:01:28]} 20. Nxd5 {[%emt 0:00:11]} Rxd5 {[%emt 0:00:50]} 21. Rxd5 {[%emt 0:00:20]} Qxd5 {[%emt 0:00:08]} 22. b3 {[%emt 0:00:35]} Qe6 {[%emt 0:02:39]} 23. Bd3 {[%emt 0:03:52]} Rd8 {[%emt 0:05:54]} 24. Qc7 {[%emt 0:01:10]} Qc8 {[%emt 0:02:04]} 25. Qxc8 {[%emt 0:00:55]} Bxc8 {[%emt 0:02:57]} 26. Rd1 {[%emt 0:00:52]} Kf8 {[%emt 0:00:31]} 27. Be2 {[%emt 0:00:13]} Rxd1+ {[%emt 0:01:17]} 28. Bxd1 {[%emt 0:00:08]} Ke7 {[%emt 0:00:10]} 29. Kf2 {[%emt 0:00:08]} Kd6 {[%emt 0:00:29]} 30. Ke3 {[%emt 0:00:08]} Bf5 {[%emt 0:00:25]} 31. a3 {[%emt 0:00:19]} Kd5 {[%emt 0:00:23]} 32. c3 {[%emt 0:00:17]} a5 {[%emt 0:01:22]} 33. g4 {[%emt 0:00:33]} Be6 {[%emt 0:01:19]} 34. Be2 {[%emt 0:00:29]} 1/2-1/2

[Event "Vienna Championship-C 2022"]
[Site "Vienna"]
[Date "2022.09.23"]
[Round "7.11"]
[White "Pavlov, Julian"]
[Black "Schreib, Christian"]
[Result "1-0"]
[ECO "C55"]
[WhiteElo "1306"]
[BlackElo "1589"]
[Annotator "NA RC COMBH"]
[PlyCount "107"]
[EventDate "2022.09.17"]
[EventType "swiss"]
[EventCountry "AUT"]
[SourceTitle "playchess.com"]
[Source "ChessBase"]
[SourceQuality "1"]
[TimeControl "5400+30"]

1. e4 {[%emt 0:00:01]} e5 {[%emt 0:00:15]} 2. Nf3 {[%emt 0:00:02]} Nc6 {[%emt 0:00:14]} 3. Bc4 {[%emt 0:00:04]} Nf6 {[%emt 0:00:17]} 4. Nc3 {[%emt 0:00:18]} Nxe4 {[%emt 0:00:31]} 5. Nxe4 {[%emt 0:00:14]} d5 {[%emt 0:00:08]} 6. Bd3 {[%emt 0:00:09]} dxe4 {[%emt 0:00:11]} 7. Bxe4 {[%emt 0:00:05]} Bd7 {[%emt 0:03:05]} 8. O-O {[%emt 0:00:30]} Bd6 {[%emt 0:00:48]} 9. d3 {[%emt 0:00:11]} O-O {[%emt 0:01:42]} 10. Bg5 {[%emt 0:01:47]} Be7 {[%emt 0:01:04]} 11. Bxe7 {[%emt 0:00:17]} Qxe7 {[%emt 0:00:11]} 12. h3 {[%emt 0:00:30]} Rab8 {[%emt 0:05:06]} 13. Re1 {[%emt 0:00:37]} f6 {[%emt 0:02:36]} 14. Bxc6 {[%emt 0:02:27]} Bxc6 {[%emt 0:00:24]} 15. d4 {[%emt 0:00:43]} Bxf3 {[%emt 0:01:29]} 16. Qxf3 {[%emt 0:00:50]} Qb4 {[%emt 0:04:22]} 17. dxe5 {[%emt 0:00:41]} fxe5 {[%emt 0:02:56]} 18. Qb3+ {[%emt 0:00:24]} Qxb3 {[%emt 0:00:29]} 19. axb3 {[%emt 0:00:11]} Rbd8 {[%emt 0:00:18]} 20. Rxa7 {[%emt 0:00:51]} Rd2 {[%emt 0:00:29]} 21. c3 {[%emt 0:01:31]} Rfxf2 {[%emt 0:00:56]} 22. Rxb7 {[%emt 0:02:35]} Rxg2+ {[%emt 0:01:41]} 23. Kh1 {[%emt 0:00:18]} Rh2+ {[%emt 0:05:58]} 24. Kg1 {[%emt 0:00:10]} Rdg2+ {[%emt 0:00:34]} 25. Kf1 {[%emt 0:00:07]} Rxb2 {[%emt 0:00:30]} 26. Kg1 {[%emt 0:00:54]} Rhg2+ {[%emt 0:07:33]} 27. Kh1 {[%emt 0:00:12]} Rgf2 {[%emt 0:03:06]} 28. Rxc7 {[%emt 0:02:29]} Rxb3 {[%emt 0:00:21]} 29. c4 {[%emt 0:00:38]} Rc2 {[%emt 0:03:56]} 30. c5 {[%emt 0:00:19]} Rxh3+ {[%emt 0:00:14]} 31. Kg1 {[%emt 0:00:03]} Rg3+ {[%emt 0:01:46]} 32. Kh1 {[%emt 0:00:56]} Rc4 {[%emt 0:01:01]} 33. Re2 {[%emt 0:01:16]} Rh4+ {[%emt 0:01:57]} 34. Rh2 {[%emt 0:00:11]} Rxh2+ {[%emt 0:00:08]} 35. Kxh2 {[%emt 0:00:05]} Rc3 {[%emt 0:00:10]} 36. c6 {[%emt 0:00:03]} h5 {[%emt 0:03:11]} 37. Rc8+ {[%emt 0:00:54]} Kf7 {[%emt 0:01:20]} 38. c7 {[%emt 0:00:14]} g5 {[%emt 0:01:47]} 39. Rh8 {[%emt 0:00:25]} Rxc7 {[%emt 0:00:48]} 40. Rh7+ {[%emt 0:00:04]} Kf6 {[%emt 0:00:12]} 41. Rxc7 {[%emt 0:00:04]} Kf5 {[%emt 0:00:06]} 42. Rc4 {[%emt 0:00:50]} e4 {[%emt 0:00:11]} 43. Kg2 {[%emt 0:01:32]} Kf4 {[%emt 0:00:22]} 44. Kf2 {[%emt 0:00:17]} g4 {[%emt 0:00:22]} 45. Rc3 {[%emt 0:00:48]} h4 {[%emt 0:00:40]} 46. Kg2 {[%emt 0:00:22]} h3+ {[%emt 0:00:25]} 47. Kf2 {[%emt 0:00:12]} h2 {[%emt 0:00:53]} 48. Kg2 {[%emt 0:00:09]} h1=Q+ {[%emt 0:47:47]} 49. Kxh1 {[%emt 1:26:30]} e3 {[%emt 0:00:00]} 50. Kg2 {[%emt 0:00:00]} Ke4 {[%emt 0:00:00]} 51. Ra3 {[%emt 0:00:00]} Kd4 {[%emt 0:00:00]} 52. Ra4+ {[%emt 0:00:00]} Kd3 {[%emt 0:00:00]} 53. Rxg4 {[%emt 0:00:00]} e2 {[%emt 0:00:00]} 54. Kf2 {[%emt 0:00:00]} 1-0

[Event "Vienna Championship-C 2022"]
[Site "Vienna"]
[Date "2022.09.23"]
[Round "7.13"]
[White "Gockner, Hans"]
[Black "Aichinger, Johannes"]
[Result "0-1"]
[ECO "C21"]
[WhiteElo "1592"]
[BlackElo "1169"]
[Annotator "NA RC COMBH"]
[PlyCount "106"]
[EventDate "2022.09.17"]
[EventType "swiss"]
[EventCountry "AUT"]
[SourceTitle "playchess.com"]
[Source "ChessBase"]
[SourceQuality "1"]
[TimeControl "5400+30"]

1. e4 {[%emt 0:00:03]} e5 {[%emt 0:00:07]} 2. d4 {[%emt 0:00:22]} exd4 {[%emt 0:00:18]} 3. c3 {[%emt 0:00:09]} d5 {[%emt 0:00:09]} 4. e5 {[%emt 0:01:31]} f6 {[%emt 0:00:10]} 5. cxd4 {[%emt 0:01:25]} c5 {[%emt 0:00:55]} 6. Nf3 {[%emt 0:01:01]} Nc6 {[%emt 0:00:22]} 7. Nc3 {[%emt 0:01:49]} cxd4 {[%emt 0:00:15]} 8. Nxd4 {[%emt 0:00:58]} Nxe5 {[%emt 0:00:19]} 9. Bb5+ {[%emt 0:01:02]} Bd7 {[%emt 0:00:14]} 10. Ne6 {[%emt 0:01:55]} Qb6 {[%emt 0:00:43]} 11. Nxd5 {[%emt 0:02:56]} Nd3+ {[%emt 0:01:07]} 12. Qxd3 {[%emt 0:02:01]} Qxe6+ {[%emt 0:00:09]} 13. Be3 {[%emt 0:00:35]} Bd6 {[%emt 0:01:17]} 14. O-O {[%emt 0:02:12]} Ne7 {[%emt 0:01:16]} 15. Bxd7+ {[%emt 0:00:33]} Qxd7 {[%emt 0:00:12]} 16. Rfe1 {[%emt 0:03:44]} Nxd5 {[%emt 0:00:28]} 17. Bf4+ {[%emt 0:02:33]} Be7 {[%emt 0:00:24]} 18. Rad1 {[%emt 0:01:18]} Rd8 {[%emt 0:00:14]} 19. Qf3 {[%emt 0:03:40]} O-O {[%emt 0:00:28]} 20. Qb3 {[%emt 0:04:14]} Bb4 {[%emt 0:01:20]} 21. Rf1 {[%emt 0:04:24]} Qf7 {[%emt 0:00:38]} 22. Rxd5 {[%emt 0:02:53]} Qxd5 {[%emt 0:00:25]} 23. Qxb4 {[%emt 0:00:07]} Qd4 {[%emt 0:00:26]} 24. Qb3+ {[%emt 0:00:49]} Qd5 {[%emt 0:00:19]} 25. Qg3 {[%emt 0:01:10]} Rfe8 {[%emt 0:01:33]} 26. h4 {[%emt 0:04:12]} Qd3 {[%emt 0:00:17]} 27. f3 {[%emt 0:04:53]} Qe2 {[%emt 0:01:47]} 28. h5 {[%emt 0:01:54]} Rd1 {[%emt 0:00:23]} 29. Rxd1 {[%emt 0:03:27]} Qxd1+ {[%emt 0:00:21]} 30. Kh2 {[%emt 0:01:34]} Re1 {[%emt 0:00:38]} 31. Qf2 {[%emt 0:00:31]} Rf1 {[%emt 0:01:02]} 32. Qe3 {[%emt 0:03:20]} Rh1+ {[%emt 0:01:16]} 33. Kg3 {[%emt 0:00:12]} Qe1+ {[%emt 0:00:44]} 34. Qxe1 {[%emt 0:02:03]} Rxe1 {[%emt 0:00:25]} 35. Bd2 {[%emt 0:42:30]} Re2 {[%emt 0:00:47]} 36. Bc3 {[%emt 0:00:00]} Kf7 {[%emt 0:00:33]} 37. f4 {[%emt 0:00:00]} b5 {[%emt 0:01:38]} 38. Kf3 {[%emt 0:00:00]} Rc2 {[%emt 0:00:16]} 39. a3 {[%emt 0:00:00]} a5 {[%emt 0:00:14]} 40. Bxa5 {[%emt 0:00:00]} Rxb2 {[%emt 0:00:19]} 41. Bb4 {[%emt 0:00:00]} Ke6 {[%emt 0:00:15]} 42. g3 {[%emt 0:00:00]} Kd5 {[%emt 0:00:16]} 43. Bf8 {[%emt 0:00:00]} g6 {[%emt 1:27:01]} 44. hxg6 {[%emt 0:04:30]} hxg6 {[%emt 0:00:00]} 45. Bg7 {[%emt 0:00:00]} Ke6 {[%emt 0:00:00]} 46. Bf8 {[%emt 0:00:00]} f5 {[%emt 0:00:00]} 47. Bb4 {[%emt 0:00:00]} Kd5 {[%emt 0:00:00]} 48. Bf8 {[%emt 0:00:00]} Kc4 {[%emt 0:00:00]} 49. Be7 {[%emt 0:00:00]} Kb3 {[%emt 0:00:00]} 50. Bb4 {[%emt 0:00:00]} Ra2 {[%emt 0:00:00]} 51. Ke3 {[%emt 0:00:00]} Rxa3 {[%emt 0:00:00]} 52. Bxa3 {[%emt 0:00:00]} Kxa3 {[%emt 0:00:00]} 53. Kd2 {[%emt 0:00:00]} b4 {[%emt 0:00:00]} 0-1

[Event "Vienna Championship-C 2022"]
[Site "Vienna"]
[Date "2022.09.24"]
[Round "8.1"]
[White "Brunner, Felix"]
[Black "Brueggeboes, Anton"]
[Result "1-0"]
[ECO "B27"]
[WhiteElo "1541"]
[BlackElo "1506"]
[Annotator "NA RC COMBH"]
[PlyCount "53"]
[EventDate "2022.09.17"]
[EventType "swiss"]
[EventCountry "AUT"]
[SourceTitle "playchess.com"]
[Source "ChessBase"]
[SourceQuality "1"]
[TimeControl "5400+30"]

1. e4 {[%emt 0:00:02]} c5 {[%emt 0:00:03]} 2. Nf3 {[%emt 0:00:04]} Nc6 {[%emt 0:00:05]} 3. Bb5 {[%emt 0:00:04]} g6 {[%emt 0:00:10]} 4. Bxc6 {[%emt 0:00:03]} bxc6 {[%emt 0:00:08]} 5. d4 {[%emt 0:00:13]} cxd4 {[%emt 0:00:32]} 6. Qxd4 {[%emt 0:00:03]} Nf6 {[%emt 0:00:23]} 7. e5 {[%emt 0:02:11]} Nd5 {[%emt 0:01:17]} 8. O-O {[%emt 0:07:20]} Bg7 {[%emt 0:00:39]} 9. c4 {[%emt 0:01:01]} Nc7 {[%emt 0:02:13]} 10. Nc3 {[%emt 0:02:05]} O-O {[%emt 0:00:42]} 11. Qh4 {[%emt 0:02:03]} d5 {[%emt 0:06:15]} 12. Bh6 {[%emt 0:03:04]} f6 {[%emt 0:05:14]} 13. Bxg7 {[%emt 0:02:14]} Kxg7 {[%emt 0:03:34]} 14. exf6+ {[%emt 0:01:25]} exf6 {[%emt 0:00:07]} 15. cxd5 {[%emt 0:00:06]} cxd5 {[%emt 0:00:11]} 16. Rad1 {[%emt 0:05:15]} Bb7 {[%emt 0:03:03]} 17. Nd4 {[%emt 0:01:36]} Qd7 {[%emt 0:01:57]} 18. Rfe1 {[%emt 0:06:51]} Rad8 {[%emt 0:07:51]} 19. Qg3 {[%emt 0:03:30]} Kh8 {[%emt 0:03:38]} 20. h3 {[%emt 0:03:33]} Qf7 {[%emt 0:01:48]} 21. Re2 {[%emt 0:04:01]} Rd7 {[%emt 0:01:10]} 22. a3 {[%emt 0:06:26]} Rfd8 {[%emt 0:09:50]} 23. Na4 {[%emt 0:09:06]} Na6 {[%emt 0:07:50]} 24. Rde1 {[%emt 0:04:54]} Rc8 {[%emt 0:01:55]} 25. b4 {[%emt 0:03:37]} Rdd8 {[%emt 0:05:51]} 26. Re7 {[%emt 0:06:17]} Qg8 {[%emt 0:06:15]} 27. Rxb7 {[%emt 0:02:05]} 1-0

[Event "Vienna Championship-C 2022"]
[Site "Vienna"]
[Date "2022.09.24"]
[Round "8.3"]
[White "Lappe, Manfred"]
[Black "Gerold, Arnold"]
[Result "1/2-1/2"]
[ECO "C27"]
[WhiteElo "1692"]
[BlackElo "1708"]
[Annotator "NA RC COMBH"]
[PlyCount "56"]
[EventDate "2022.09.17"]
[EventType "swiss"]
[EventCountry "AUT"]
[SourceTitle "playchess.com"]
[Source "ChessBase"]
[SourceQuality "1"]
[TimeControl "5400+30"]

1. e4 {[%emt 1:31:00]} d6 {[%emt 1:31:00]} 2. Bc4 {[%emt 0:00:30]} Nf6 {[%emt 0:00:30]} 3. Nc3 {[%emt 0:00:30]} c6 {[%emt 0:00:30]} 4. d3 {[%emt 0:00:30]} e5 {[%emt 0:00:30]} 5. Bg5 {[%emt 0:00:30]} Be7 {[%emt 0:00:30]} 6. Nge2 {[%emt 0:00:30]} b5 {[%emt 0:00:30]} 7. Bb3 {[%emt 0:00:30]} a5 {[%emt 0:00:30]} 8. a3 {[%emt 0:00:30]} Bg4 {[%emt 0:00:30]} 9. f3 {[%emt 0:00:30]} Bh5 {[%emt 0:00:30]} 10. Ng3 {[%emt 0:00:30]} Bg6 {[%emt 0:00:30]} 11. Qd2 {[%emt 0:00:30]} Nbd7 {[%emt 0:00:30]} 12. O-O {[%emt 0:00:30]} O-O {[%emt 0:00:30]} 13. Nce2 {[%emt 0:00:30]} h6 {[%emt 0:00:30]} 14. Be3 {[%emt 0:00:30]} d5 {[%emt 0:00:30]} 15. exd5 {[%emt 0:00:30]} cxd5 {[%emt 0:00:30]} 16. f4 {[%emt 0:00:30]} d4 {[%emt 0:00:30]} 17. Bf2 {[%emt 0:00:30]} exf4 {[%emt 0:00:30]} 18. Nxf4 {[%emt 0:00:30]} Ne5 {[%emt 0:00:30]} 19. Rfe1 {[%emt 0:00:30]} Nfg4 {[%emt 0:00:30]} 20. h3 {[%emt 0:00:30]} Ne3 {[%emt 0:00:30]} 21. Bxe3 {[%emt 0:00:30]} dxe3 {[%emt 0:00:30]} 22. Qxe3 {[%emt 0:00:30]} Bf6 {[%emt 0:00:30]} 23. d4 {[%emt 0:00:30]} Nc4 {[%emt 0:00:30]} 24. Qf3 {[%emt 0:00:30]} Bxd4+ {[%emt 0:00:30]} 25. Kh1 {[%emt 0:00:30]} Qf6 {[%emt 0:00:30]} 26. Nxg6 {[%emt 0:00:30]} Qxg6 {[%emt 0:00:30]} 27. Bxc4 {[%emt 0:00:30]} bxc4 {[%emt 0:00:30]} 28. c3 {[%emt 0:00:30]} Bf6 {[%emt 0:00:30]} 1/2-1/2

[Event "Vienna Championship-C 2022"]
[Site "Vienna"]
[Date "2022.09.24"]
[Round "8.4"]
[White "Geyer, Guenter"]
[Black "Meixner, Peter"]
[Result "0-1"]
[ECO "A03"]
[WhiteElo "1855"]
[BlackElo "1669"]
[Annotator "NA RC COMBH"]
[PlyCount "128"]
[EventDate "2022.09.17"]
[EventType "swiss"]
[EventCountry "AUT"]
[SourceTitle "playchess.com"]
[Source "ChessBase"]
[SourceQuality "1"]
[TimeControl "5400+30"]

1. f4 {[%emt 0:00:02]} d5 {[%emt 0:00:04]} 2. Nf3 {[%emt 0:00:04]} Nf6 {[%emt 0:00:06]} 3. b3 {[%emt 0:01:00]} e6 {[%emt 0:00:10]} 4. e3 {[%emt 0:00:10]} Be7 {[%emt 0:00:10]} 5. Bb2 {[%emt 0:00:06]} O-O {[%emt 0:00:13]} 6. Ne5 {[%emt 0:02:07]} Nbd7 {[%emt 0:01:40]} 7. d3 {[%emt 0:04:27]} Nxe5 {[%emt 0:00:28]} 8. Bxe5 {[%emt 0:01:34]} Bd6 {[%emt 0:00:22]} 9. Bb2 {[%emt 0:01:16]} Re8 {[%emt 0:01:56]} 10. d4 {[%emt 0:01:50]} Ne4 {[%emt 0:00:34]} 11. g3 {[%emt 0:01:56]} f5 {[%emt 0:01:19]} 12. Nd2 {[%emt 0:02:40]} Bb4 {[%emt 0:02:40]} 13. c3 {[%emt 0:00:39]} Nxc3 {[%emt 0:04:35]} 14. Bxc3 {[%emt 0:02:42]} Bxc3 {[%emt 0:02:08]} 15. Rc1 {[%emt 0:01:04]} Bb4 {[%emt 0:01:25]} 16. Be2 {[%emt 0:02:04]} Bd7 {[%emt 0:04:48]} 17. O-O {[%emt 0:00:24]} Rf8 {[%emt 0:01:38]} 18. Nf3 {[%emt 0:01:31]} Bd6 {[%emt 0:01:37]} 19. Kh1 {[%emt 0:02:38]} Be8 {[%emt 0:00:48]} 20. Ng5 {[%emt 0:04:00]} Qf6 {[%emt 0:02:18]} 21. g4 {[%emt 0:03:22]} Bg6 {[%emt 0:01:55]} 22. Nh3 {[%emt 0:00:59]} fxg4 {[%emt 0:02:06]} 23. Bxg4 {[%emt 0:00:52]} Be4+ {[%emt 0:04:03]} 24. Bf3 {[%emt 0:00:36]} Qf5 {[%emt 0:02:28]} 25. Nf2 {[%emt 0:02:20]} Bxf3+ {[%emt 0:01:02]} 26. Qxf3 {[%emt 0:00:04]} Kh8 {[%emt 0:02:42]} 27. Rg1 {[%emt 0:02:03]} g5 {[%emt 0:04:19]} 28. Qg3 {[%emt 0:01:28]} Rg8 {[%emt 0:00:48]} 29. Qh3 {[%emt 0:05:32]} Qxh3 {[%emt 0:04:15]} 30. Nxh3 {[%emt 0:00:07]} gxf4 {[%emt 0:00:42]} 31. Nxf4 {[%emt 0:00:38]} Rxg1+ {[%emt 0:00:50]} 32. Kxg1 {[%emt 0:00:44]} Bxf4 {[%emt 0:00:36]} 33. exf4 {[%emt 0:00:05]} c6 {[%emt 0:00:37]} 34. Kf2 {[%emt 0:00:37]} Kg7 {[%emt 0:00:22]} 35. Rg1+ {[%emt 0:01:29]} Kf7 {[%emt 0:00:19]} 36. Rg5 {[%emt 0:03:25]} a5 {[%emt 0:00:49]} 37. Rh5 {[%emt 0:00:13]} Kg6 {[%emt 0:01:09]} 38. Re5 {[%emt 0:00:45]} Kf6 {[%emt 0:00:08]} 39. Rh5 {[%emt 0:00:32]} Rh8 {[%emt 0:00:10]} 40. Kf3 {[%emt 0:00:13]} h6 {[%emt 0:02:02]} 41. Ke3 {[%emt 0:01:49]} b6 {[%emt 0:01:00]} 42. Kd3 {[%emt 0:02:30]} c5 {[%emt 0:01:33]} 43. a4 {[%emt 0:00:13]} Ke7 {[%emt 0:00:57]} 44. Kc3 {[%emt 0:01:40]} cxd4+ {[%emt 0:00:50]} 45. Kxd4 {[%emt 0:00:06]} Kd6 {[%emt 0:00:25]} 46. Kd3 {[%emt 0:07:31]} Kc5 {[%emt 0:01:05]} 47. Kc3 {[%emt 0:02:21]} Kd6 {[%emt 0:02:18]} 48. Kd3 {[%emt 0:00:54]} Rf8 {[%emt 0:00:41]} 49. Rxh6 {[%emt 0:00:07]} Rxf4 {[%emt 0:00:07]} 50. Rh8 {[%emt 0:01:08]} Rf3+ {[%emt 0:00:23]} 51. Kc2 {[%emt 0:01:04]} Kc5 {[%emt 0:07:12]} 52. Rh5 {[%emt 0:03:03]} Re3 {[%emt 0:01:40]} 53. Rh4 {[%emt 0:02:20]} e5 {[%emt 0:00:37]} 54. Rh6 {[%emt 0:01:22]} d4 {[%emt 0:00:37]} 55. h4 {[%emt 0:00:49]} Rc3+ {[%emt 0:00:11]} 56. Kb2 {[%emt 0:00:18]} Rh3 {[%emt 0:00:19]} 57. Rh5 {[%emt 0:00:23]} Rh2+ {[%emt 0:00:31]} 58. Kc1 {[%emt 0:00:52]} Kd5 {[%emt 0:00:14]} 59. Rh6 {[%emt 0:00:18]} Kc5 {[%emt 0:02:15]} 60. Rh5 {[%emt 0:00:27]} Re2 {[%emt 0:00:23]} 61. Rg5 {[%emt 0:01:15]} Kb4 {[%emt 0:03:00]} 62. Kd1 {[%emt 0:01:22]} d3 {[%emt 0:01:42]} 63. h5 {[%emt 0:00:16]} Kc3 {[%emt 0:01:12]} 64. h6 {[%emt 0:00:28]} Rh2 {[%emt 0:32:57]} 0-1

[Event "Vienna Championship-C 2022"]
[Site "Vienna"]
[Date "2022.09.24"]
[Round "8.8"]
[White "Roehrbacher, Franz"]
[Black "Ruck, Helmut"]
[Result "1/2-1/2"]
[ECO "B02"]
[WhiteElo "1673"]
[BlackElo "1662"]
[Annotator "NA RC COMBH"]
[PlyCount "108"]
[EventDate "2022.09.17"]
[EventType "swiss"]
[EventCountry "AUT"]
[SourceTitle "playchess.com"]
[Source "ChessBase"]
[SourceQuality "1"]
[TimeControl "5400+30"]

1. e4 {[%emt 0:00:04]} Nf6 {[%emt 0:21:40]} 2. Nc3 {[%emt 0:00:57]} d5 {[%emt 0:00:02]} 3. exd5 {[%emt 0:00:22]} Nxd5 {[%emt 0:00:02]} 4. Bc4 {[%emt 0:01:48]} Nb6 {[%emt 0:00:08]} 5. Bb3 {[%emt 0:00:41]} Nc6 {[%emt 1:11:08]} 6. a4 {[%emt 0:01:42]} a5 {[%emt 0:00:00]} 7. Nf3 {[%emt 0:01:10]} Bf5 {[%emt 0:00:00]} 8. O-O {[%emt 1:27:46]} e6 9. h3 {[%emt 0:00:00]} Be7 {[%emt 0:00:00]} 10. d3 {[%emt 0:00:00]} O-O {[%emt 0:00:00]} 11. Bd2 {[%emt 0:00:00]} h6 {[%emt 0:00:00]} 12. Re1 {[%emt 0:00:00]} Bf6 {[%emt 0:00:00]} 13. Rb1 {[%emt 0:00:00]} Nd4 {[%emt 0:00:00]} 14. Ba2 {[%emt 0:00:00]} c6 {[%emt 0:00:00]} 15. Ne4 {[%emt 0:00:00]} Nxf3+ {[%emt 0:00:00]} 16. Qxf3 {[%emt 0:00:00]} Bxe4 {[%emt 0:00:00]} 17. Rxe4 {[%emt 0:00:00]} Nd5 {[%emt 0:00:00]} 18. c3 {[%emt 0:00:00]} Bg5 {[%emt 0:00:00]} 19. Rd1 {[%emt 0:00:00]} Bxd2 {[%emt 0:00:00]} 20. Rxd2 {[%emt 0:00:00]} Qg5 {[%emt 0:00:00]} 21. Rde2 {[%emt 0:00:00]} Qd8 {[%emt 0:00:00]} 22. d4 {[%emt 0:00:00]} b5 {[%emt 0:00:00]} 23. axb5 {[%emt 0:00:00]} cxb5 {[%emt 0:00:00]} 24. Bb1 {[%emt 0:00:00]} Qc7 {[%emt 0:00:00]} 25. Re1 {[%emt 0:00:00]} b4 {[%emt 0:00:00]} 26. Qd3 {[%emt 0:00:00]} Nf6 {[%emt 0:00:00]} 27. R4e3 {[%emt 0:00:00]} bxc3 {[%emt 0:00:00]} 28. Rf3 {[%emt 0:00:00]} cxb2 {[%emt 0:00:00]} 29. Rxf6 {[%emt 0:00:00]} g6 {[%emt 0:00:00]} 30. Qd2 {[%emt 0:00:00]} Kg7 {[%emt 0:00:00]} 31. Rf3 {[%emt 0:00:00]} Rab8 {[%emt 0:00:00]} 32. Ra3 {[%emt 0:00:00]} Rfc8 {[%emt 0:00:00]} 33. Ra2 {[%emt 0:00:00]} Qb6 {[%emt 0:00:00]} 34. Rxa5 {[%emt 0:00:00]} Rc1 {[%emt 0:00:00]} 35. Rc5 {[%emt 0:00:00]} Rxc5 {[%emt 0:00:00]} 36. dxc5 {[%emt 0:00:00]} Qxc5 {[%emt 0:00:00]} 37. Rd1 {[%emt 0:00:00]} Qc7 {[%emt 0:00:15]} 38. g3 {[%emt 0:00:00]} h5 {[%emt 0:01:26]} 39. h4 {[%emt 0:00:00]} Kg8 {[%emt 0:00:17]} 40. Kf1 {[%emt 0:00:00]} Qc6 {[%emt 0:04:22]} 41. Kg1 {[%emt 0:00:00]} Qb6 {[%emt 0:00:54]} 42. Qd4 {[%emt 0:00:00]} Qa5 {[%emt 0:03:45]} 43. Qd6 {[%emt 0:00:00]} Qb5 {[%emt 0:00:12]} 44. Bxg6 {[%emt 0:00:00]} fxg6 {[%emt 0:00:29]} 45. Qxe6+ {[%emt 0:00:00]} Kg7 {[%emt 0:01:20]} 46. Qe7+ {[%emt 0:02:18]} Kg8 {[%emt 0:01:20]} 47. Qe6+ {[%emt 0:00:22]} Kg7 {[%emt 0:00:05]} 48. Rd7+ {[%emt 0:02:32]} Qxd7 {[%emt 0:03:44]} 49. Qxd7+ {[%emt 0:00:12]} Kg8 {[%emt 0:00:18]} 50. Qd5+ {[%emt 0:00:30]} Kh7 {[%emt 0:00:21]} 51. Qf7+ {[%emt 0:01:02]} Kh8 {[%emt 0:00:23]} 52. Qf6+ {[%emt 0:00:13]} Kh7 {[%emt 0:00:09]} 53. Qe7+ {[%emt 0:00:14]} Kg8 {[%emt 0:00:14]} 54. Qe6+ {[%emt 0:00:21]} Kh7 {[%emt 0:04:56]} 1/2-1/2

[Event "Vienna Championship-C 2022"]
[Site "Vienna"]
[Date "2022.09.24"]
[Round "8.9"]
[White "Zikic, Goran"]
[Black "Johnson, Roland E S"]
[Result "0-1"]
[ECO "A02"]
[WhiteElo "1340"]
[BlackElo "1691"]
[Annotator "NA RC COMBH"]
[PlyCount "60"]
[EventDate "2022.09.17"]
[EventType "swiss"]
[EventCountry "AUT"]
[SourceTitle "playchess.com"]
[Source "ChessBase"]
[SourceQuality "1"]
[TimeControl "5400+30"]

1. f4 e5 2. e3 exf4 3. exf4 Nf6 4. Bc4 Bd6 5. d3 O-O 6. Be3 Re8 7. Qf3 Nc6 8. c3 Bc5 9. d4 Nxd4 10. cxd4 Bxd4 11. Nc3 Rxe3+ 12. Qxe3 Bxe3 13. Nf3 Qe7 14. Kf1 Ne4 15. Nd5 Qd8 16. Nxe3 c6 17. Rd1 d5 18. Bb3 Qb6 19. Re1 d4 20. Nc4 Qa6 21. Rxe4 Be6 22. Rxd4 c5 23. Rd6 Bxc4+ 24. Bxc4 Qxd6 25. Ke1 Re8+ 26. Ne5 Kf8 27. Kf2 f6 28. Nd3 Qd4+ 29. Kg3 Qxc4 30. Rd1 Re3+ 0-1